fUST/lending_fUST_20240430
["ID","MTS","AMOUNT","RATE_DAILY","PERIOD"]
[324908819,1714409440565,-492.730478,0.000339,2]
[324908820,1714409440575,-800.649902,0.000339,2]
[324908821,1714409440584,-869.142926,0.000339,2]
[324908822,1714409440593,-151.0,0.000339,2]
[324908823,1714409440602,-800.649902,0.000339,2]
[324908824,1714409440611,-195.575094,0.000339,2]
[324908825,1714409440621,-195.575094,0.000339,2]
[324908826,1714409440631,-151.0,0.000339,2]
[324908827,1714409440640,-688.698806,0.000339,2]
[324908828,1714409440649,-158.249862,0.000339,2]
[324908829,1714409440659,-688.698806,0.000339,2]
[324908830,1714409440668,-151.0,0.000339,2]
[324908831,1714409440678,-269.821985,0.000339,2]
[324908832,1714409440687,-269.821985,0.000339,2]
[324908833,1714409440697,-153.095489,0.000339,2]
[324908834,1714409440706,-151.0,0.000339,2]
[324908835,1714409440716,-153.095489,0.000339,2]
[324908836,1714409440725,-1067.904186,0.000339,2]
[324908837,1714409440735,-744.322369,0.000339,2]
[324908838,1714409440744,-1067.904186,0.000339,2]
[324908839,1714409440754,-744.322369,0.000339,2]
[324908840,1714409440767,-5720.475648,0.000339,2]
[324908841,1714409440776,-5720.475648,0.000339,2]
[324908842,1714409440786,-150.0,0.00033999,2]
[324908843,1714409440795,-466.35092847,0.00034,4]
[324908845,1714409440807,-180.8752,0.00034521,2]
[324908847,1714409440816,-301.525914,0.00034521,2]
[324908848,1714409440827,-153.0,0.00034727,2]
[324908849,1714409440838,-153.0,0.00034727,2]
[324908850,1714409440848,-153.0,0.00034727,2]
[324908851,1714409440858,-153.0,0.00034727,2]
[324908852,1714409440867,-153.0,0.00034727,2]
[324908853,1714409440876,-1271.52239957,0.00034728,12]
[324908854,1714409440886,-26905.96443452,0.000349,2]
[324908855,1714409440895,-150.0,0.00034999,2]
[324908856,1714409440905,-1329.78267311,0.00035,4]
[324908857,1714409440915,-154.75239617,0.00035,15]
[324908858,1714409440925,-160.01775706,0.00035,30]
[324908859,1714409440935,-154.75239617,0.00035,4]
[324908860,1714409440944,-1967.12784789,0.00035,4]
[324908861,1714409440953,-854.16964597,0.00035,2]
[324908862,1714409440964,-1307.89147106,0.00035,7]
[324908863,1714409440973,-191.6,0.0003524,7]
[324908864,1714409440982,-153.0,0.00035549,2]
[324908865,1714409440992,-153.0,0.00035549,2]
[324908866,1714409441003,-153.0,0.00035549,2]
[324908867,1714409441012,-153.0,0.00035549,2]
[324908868,1714409441022,-153.0,0.00035549,2]
[324908869,1714409441032,-153.0,0.00035549,2]
[324908870,1714409441041,-153.0,0.00035549,2]
[324908872,1714409441161,-153.0,0.00035549,2]
[324908873,1714409441171,-153.0,0.00035549,2]
[324908874,1714409441180,-153.0,0.00035549,2]
[324908875,1714409441190,-153.0,0.00035549,2]
[324908876,1714409441199,-153.0,0.00035549,2]
[324908877,1714409441209,-153.0,0.00035549,2]
[324908878,1714409441219,-800.649902,0.00035616,2]
[324908879,1714409441229,-151.0,0.00035616,2]
[324908880,1714409441238,-800.649902,0.00035616,2]
[324908881,1714409441248,-195.575094,0.00035616,2]
[324908882,1714409441257,-195.575094,0.00035616,2]
[324908883,1714409441266,-151.0,0.00035616,2]
[324908884,1714409441276,-688.698806,0.00035616,2]
[324908885,1714409441285,-688.698806,0.00035616,2]
[324908886,1714409441295,-151.0,0.00035616,2]
[324908887,1714409441304,-269.821985,0.00035616,2]
[324908888,1714409441313,-269.821985,0.00035616,2]
[324908889,1714409441323,-153.095489,0.00035616,2]
[324908890,1714409441332,-153.095489,0.00035616,2]
[324908891,1714409441343,-744.322369,0.00035616,2]
[324908892,1714409441352,-744.322369,0.00035616,2]
[324908893,1714409441361,-3442.856419,0.00035616,120]
[324908894,1714409441370,-211.31440801,0.0003589,2]
[324908896,1714409441379,-150.0,0.00035999,2]
[324908898,1714409441388,-162.0,0.00036,2]
[324908900,1714409441397,-272.0,0.00036,2]
[324908902,1714409441407,-272.0,0.00036,2]
[324908904,1714409441416,-153.0,0.00036097,2]
[324908906,1714409441426,-153.0,0.00036097,2]
[324908908,1714409441435,-153.0,0.00036097,2]
[324908910,1714409441444,-153.0,0.00036097,2]
[324908912,1714409441454,-417.0,0.00036736,2]
[324908914,1714409441466,-150.0,0.00036736,2]
[324908916,1714409441475,-210.983,0.00036736,2]
[324908918,1714409441485,-165.849631,0.00036781,2]
[324908920,1714409441494,-158.392943,0.00036781,2]
[324908922,1714409441503,-200.0,0.00036893,120]
[324908924,1714409441513,-150.0,0.00036999,2]
[324908926,1714409441522,-2926.96341876,0.00037,2]
[324908928,1714409441532,-162.0,0.00037397,2]
[324908930,1714409441541,-153.0,0.00037455,2]
[324908932,1714409441550,-191.6,0.0003789,14]
[324908934,1714409441559,-200.0,0.0003806,120]
[324908936,1714409441568,-224.837,0.00038114,2]
[324908938,1714409441577,-250.0,0.00038114,2]
[324908940,1714409441586,-999.0,0.00038356,2]
[324908942,1714409441595,-1159.84144778,0.000388,120]
[324908944,1714409441605,-170.818184,0.00038826,2]
[324908946,1714409441614,-159.00286188,0.00039,120]
[324908948,1714409441624,-272.0,0.00039,2]
[324908950,1714409441633,-163.0,0.00039267,14]
[324908952,1714409441642,-151.0,0.00039452,2]
[324908954,1714409441652,-874.261483,0.00039452,2]
[324908956,1714409441661,-874.261483,0.00039452,2]
[324908958,1714409441671,-999.0,0.00039452,4]
[324908960,1714409441681,-409.0,0.000395,2]
[324908962,1714409441690,-150.0,0.00039736,2]
[324908964,1714409441699,-995.16145114,0.0004,10]
[324908966,1714409441711,-4253.66286157,0.0004,4]
[324908968,1714409441721,-151.0,0.0004,2]
[324908970,1714409441731,-11000.0,0.0004,2]
[324908972,1714409441741,-150.77383924,0.00040178,2]
[324908974,1714409441751,-10885.0,0.000402,45]
[324908976,1714409441764,-151.0,0.000402,2]
[324908978,1714409441774,-151.0,0.000402,2]
[324908980,1714409441783,-221.618425,0.000402,2]
[324908982,1714409441794,-221.618425,0.000402,2]
[324908984,1714409441803,-151.0,0.000402,2]
[324908986,1714409441812,-550.094198,0.000402,2]
[324908988,1714409441821,-151.0,0.000402,2]
[324908990,1714409441832,-550.094198,0.000402,2]
[324908992,1714409441841,-4939.427983,0.000402,2]
[324908994,1714409441851,-1037.805824,0.000402,2]
[324908996,1714409441861,-4939.427983,0.000402,2]
[324908998,1714409441870,-1037.805824,0.000402,2]
[324909000,1714409441880,-492.730478,0.000402,2]
[324909002,1714409441889,-869.142926,0.000402,2]
[324909004,1714409441898,-492.730478,0.000402,2]
[324909006,1714409441907,-869.142926,0.000402,2]
[324909008,1714409441916,-151.0,0.000402,2]
[324909010,1714409441925,-1067.904186,0.000402,2]
[324909012,1714409441935,-1067.904186,0.000402,2]
[324909014,1714409441944,-5720.475648,0.000402,2]
[324909016,1714409441953,-5720.475648,0.000402,2]
[324909018,1714409441964,-750.9249822,0.000403,30]
[324909020,1714409441973,-191.6,0.0004054,14]
[324909023,1714409441982,-999.0,0.00040547,6]
[324909024,1714409441992,-180.8752,0.00040548,2]
[324909027,1714409442003,-301.525914,0.00040548,2]
[324909029,1714409442013,-1688.0,0.000408,120]
[324909030,1714409442023,-301.54767848,0.00040854,4]
[324909033,1714409442033,-252.6859923,0.00041,2]
[324909034,1714409442043,-189.06259956,0.00041,2]
[324909035,1714409442052,-166.666666,0.00041096,2]
[324909036,1714409442062,-550.8267117,0.00041096,31]
[324909037,1714409442071,-550.8267117,0.00041096,31]
[324909038,1714409442080,-550.8267117,0.00041096,31]
[324909039,1714409442089,-550.8267117,0.00041096,31]
[324909040,1714409442099,-550.8267117,0.00041096,31]
[324909041,1714409442110,-550.8267117,0.00041096,31]
[324909042,1714409442120,-550.8267117,0.00041096,31]
[324909043,1714409442130,-550.8267117,0.00041096,31]
[324909044,1714409442139,-550.8267117,0.00041096,31]
[324909045,1714409442149,-550.8267117,0.00041096,31]
[324909046,1714409442158,-550.8267117,0.00041096,31]
[324909047,1714409442168,-550.8267117,0.00041096,31]
[324909048,1714409442178,-550.8267117,0.00041096,31]
[324909049,1714409442187,-550.8267117,0.00041096,31]
[324909050,1714409442197,-550.8267117,0.00041096,31]
[324909051,1714409442208,-550.8267117,0.00041096,31]
[324909052,1714409442218,-550.8267117,0.00041096,31]
[324909053,1714409442227,-550.8267117,0.00041096,31]
[324909054,1714409442236,-550.8267117,0.00041096,31]
[324909055,1714409442246,-550.8267117,0.00041096,31]
[324909056,1714409442257,-550.8267117,0.00041096,31]
[324909057,1714409442267,-550.8267117,0.00041096,31]
[324909058,1714409442277,-550.8267117,0.00041096,31]
[324909059,1714409442286,-550.8267117,0.00041096,31]
[324909060,1714409442295,-550.8267117,0.00041096,31]
[324909061,1714409442305,-550.8267117,0.00041096,31]
[324909062,1714409442314,-550.8267117,0.00041096,31]
[324909063,1714409442324,-550.8267117,0.00041096,31]
[324909064,1714409442334,-550.8267117,0.00041096,31]
[324909065,1714409442344,-550.8267117,0.00041096,31]
[324909066,1714409442354,-550.8267117,0.00041096,31]
[324909067,1714409442363,-550.8267117,0.00041096,31]
[324909068,1714409442373,-550.8267117,0.00041096,31]
[324909069,1714409442383,-550.8267117,0.00041096,31]
[324909070,1714409442393,-550.8267117,0.00041096,31]
[324909071,1714409442402,-550.8267117,0.00041096,31]
[324909072,1714409442412,-550.8267117,0.00041096,31]
[324909073,1714409442421,-550.8267117,0.00041096,31]
[324909074,1714409442431,-550.8267117,0.00041096,31]
[324909075,1714409442441,-550.8267117,0.00041096,31]
[324909076,1714409442451,-550.8267117,0.00041096,31]
[324909077,1714409442462,-550.8267117,0.00041096,31]
[324909078,1714409442472,-550.8267117,0.00041096,31]
[324909079,1714409442482,-550.8267117,0.00041096,31]
[324909080,1714409442493,-550.8267117,0.00041096,31]
[324909081,1714409442502,-550.8267117,0.00041096,31]
[324909082,1714409442512,-550.8267117,0.00041096,31]
[324909083,1714409442522,-550.8267117,0.00041096,31]
[324909084,1714409442531,-550.8267117,0.00041096,31]
[324909085,1714409442541,-550.8267117,0.00041096,31]
[324909086,1714409442550,-550.8267117,0.00041096,31]
[324909087,1714409442560,-550.8267117,0.00041096,31]
[324909088,1714409442570,-150.0,0.00041114,2]
[324909089,1714409442579,-150.0,0.00041114,2]
[324909090,1714409442589,-1291.5,0.0004132,60]
[324909091,1714409442600,-3442.856419,0.00041553,120]
[324909092,1714409442609,-999.0,0.00041643,8]
[324909093,1714409442619,-157.0,0.0004229,38]
[324909094,1714409442628,-705.94711,0.00042739,7]
[324909095,1714409442638,-705.94711,0.00042739,7]
[324909096,1714409442647,-151.0,0.00042739,7]
[324909097,1714409442657,-151.261958,0.00042739,7]
[324909098,1714409442665,-151.0,0.00042739,7]
[324909099,1714409442675,-151.0,0.00042739,7]
[324909100,1714409442684,-151.0,0.00042739,7]
[324909101,1714409442693,-1401.218842,0.00042739,7]
[324909102,1714409442704,-1401.218842,0.00042739,7]
[324909103,1714409442714,-999.0,0.00042739,10]
[324909104,1714409442723,-191.6,0.0004319,30]
[324909105,1714409442733,-1291.5,0.0004333,120]
[324909106,1714409442742,-407.75132656,0.00043641,30]
[324909107,1714409442753,-688.698806,0.00043835,7]
[324909108,1714409442765,-688.698806,0.00043835,7]
[324909109,1714409442775,-151.0,0.00043835,7]
[324909110,1714409442784,-269.821985,0.00043835,7]
[324909111,1714409442795,-269.821985,0.00043835,7]
[324909112,1714409442805,-153.095489,0.00043835,7]
[324909113,1714409442814,-999.0,0.00043835,12]
[324909114,1714409442823,-153.095489,0.00043835,7]
[324909115,1714409442834,-744.322369,0.00043835,7]
[324909116,1714409442843,-744.322369,0.00043835,7]
[324909118,1714409442853,-153.34957969,0.00043865,49]
[324909119,1714409442862,-158.392943,0.00043938,2]
[324909120,1714409442871,-150.5,0.0004397,35]
[324909121,1714409442881,-912.0,0.0004397,35]
[324909122,1714409442891,-168.58,0.0004397,35]
[324909123,1714409442901,-150.5,0.0004398,35]
[324909124,1714409442911,-912.0,0.0004398,35]
[324909125,1714409442920,-150.5,0.0004398,35]
[324909126,1714409442930,-150.5,0.0004399,35]
[324909127,1714409442939,-912.0,0.0004399,35]
[324909128,1714409442948,-150.5,0.0004399,35]
[324909129,1714409442959,-389940.1652529,0.00044,2]
[324909131,1714409442986,-1825.89,0.00044,2]
[324909267,1714409444039,-164.0768642,0.00014719,2]
[324909269,1714409444050,-17835.9231358,0.00041086,3]
[324909286,1714409444454,-12944.6668642,0.00041086,3]
[324909287,1714409444466,-6592.17032985,0.00044,2]
[324909307,1714409463680,2464.4038062,0.0002,10]
[324909308,1714409609512,472.68114332,9.999e-05,2]
[324909313,1714410051829,890.802326,9.999e-05,2]
[324909314,1714410067446,683.23867972,9.999e-05,2]
[324909315,1714410068592,314.78574907,9.999e-05,2]
[324909316,1714410070079,1203.25513556,9.999e-05,2]
[324909323,1714410075817,164.0768642,9.999e-05,2]
[324909324,1714410180619,6051.01475804,9.999e-05,2]
[324909325,1714410193041,501.43513125,9.999e-05,2]
[324909326,1714410219271,4718.71021284,9.999e-05,2]
[324909327,1714410219303,2827.20684709,9.999e-05,2]
[324909842,1714410450211,-162.25127864,0.00013069,2]
[324909843,1714410495024,683.23867972,9.999e-05,2]
[324909844,1714410500131,314.78574907,9.999e-05,2]
[324909848,1714410519627,1203.25513556,9.999e-05,2]
[324909852,1714410549156,-1203.25513556,0.00012582,2]
[324909853,1714410549179,-164.0768642,0.00012582,2]
[324909854,1714410549207,-300.0,0.00012582,2]
[324909855,1714410549227,-300.0,0.00012582,2]
[324909856,1714410549248,-24900.0,0.00012583,2]
[324909857,1714410549267,-6689.2148124,0.0001265,2]
[324909858,1714410549289,-3551.65251294,0.00013071,2]
[324909909,1714410633704,-997.84288948,0.00013071,2]
[324910272,1714410638610,-859.53376887,0.00013071,2]
[324910273,1714410638620,-162.25127864,0.00013173,2]
[324910275,1714410638630,-138.05718787,0.00013275,2]
[324910281,1714410638687,-16.92718069,0.00013275,2]
[324910283,1714410638696,-155.05816273,0.00013275,2]
[324910285,1714410638707,-166.666666,0.00013699,2]
[324910287,1714410638716,-1005.0272249,0.00013699,2]
[324910289,1714410638726,-300.0,0.00014165,2]
[324910291,1714410638736,-300.0,0.00014165,2]
[324910293,1714410638746,-730.61014924,0.00014166,2]
[324910294,1714410638755,-154.79876161,0.00014166,2]
[324910296,1714410638764,-305.18617801,0.00014166,2]
[324910298,1714410638774,-314.78574907,0.00014166,2]
[324910299,1714410638784,-683.23867972,0.00014166,2]
[324910300,1714410638794,-510.15557126,0.00014167,2]
[324910301,1714410638803,-1575.89999581,0.00014167,2]
[324910302,1714410638814,-171.196199,0.00014677,2]
[324910303,1714410638826,-12595.22607244,0.00014997,2]
[324910304,1714410638836,-312.89043206,0.00015,2]
[324910305,1714410638846,-560.31878362,0.00015,2]
[324910306,1714410638856,-250.0,0.00015072,2]
[324910307,1714410638866,-420.0,0.00015515,2]
[324910308,1714410638875,-420.0,0.00015581,2]
[324910309,1714410638885,-181.0,0.00016995,2]
[324910310,1714410638895,-193.0,0.00017139,2]
[324910311,1714410638904,-514.23297925,0.00017139,2]
[324910312,1714410638914,-407.75132656,0.0001714,2]
[324910313,1714410638923,-154.78330338,0.00018238,2]
[324910314,1714410638933,-408.93236744,0.00019045,2]
[324910315,1714410638942,-186.4780582,0.00019045,2]
[324910316,1714410638951,-3452.37740078,0.00019045,2]
[324910317,1714410638961,-2626.30439442,0.00019045,2]
[324910318,1714410638970,-500.083195,0.00019178,2]
[324910319,1714410638979,-500.0,0.00019178,2]
[324910320,1714410638988,-161.055278,0.00019178,2]
[324910321,1714410638997,-764.82689238,0.00019198,2]
[324910322,1714410639010,-481.78042451,0.00019199,2]
[324910323,1714410639025,-44444.0,0.000192,2]
[324910324,1714410639039,-2000.0,0.000192,2]
[324910325,1714410639054,-193.88,0.0001929,3]
[324910326,1714410639066,-581.67,0.0001929,3]
[324910327,1714410639079,-410200.88923209,0.000193,2]
[324910328,1714410639091,-593.39945003,0.0001957,2]
[324910329,1714410639104,-178.3,0.0001967,3]
[324910330,1714410639118,-5000.0,0.000199,2]
[324910331,1714410639134,-1906.16709481,0.00019999,2]
[324910332,1714410639147,-241.68429594,0.0002,2]
[324910333,1714410639162,-5460.61782475,0.0002,2]
[324910334,1714410639177,-329.93912296,0.0002,2]
[324910335,1714410639190,-43308.49339472,0.0002,2]
[324910347,1714410640827,-501.98208771,0.0002,2]
[324910372,1714410643692,-13934.15443135,0.0002,2]
[324910380,1714410646550,-717.86575868,0.00019999,2]
[324910381,1714410646560,-263.8958978,0.0002,2]
[324910460,1714411067732,314.78574907,9.999e-05,2]
[324910464,1714411151757,19198.47309756,9.999e-05,2]
[324910466,1714411169737,5379.07016082,9.999e-05,2]
[324910471,1714411505235,314.78574907,9.999e-05,2]
[324910475,1714411641157,-153.0,0.00013797,2]
[324910487,1714411832438,-314.78574907,0.00013696,2]
[324910488,1714411832447,-160.68843758,0.00013697,2]
[324910489,1714411832455,-1879.62800973,0.00013795,2]
[324910490,1714411832463,-850.84224864,0.00013797,2]
[324910491,1714411832472,-16102.63338321,0.00013797,2]
[324910492,1714411832481,-2084.30400312,0.00013797,2]
[324910493,1714411832489,-1385.85628783,0.000138,2]
[324910494,1714411832501,-154.78330338,0.00013823,2]
[324910495,1714411832510,-928.56039633,0.00014,2]
[324910496,1714411832519,-171.196199,0.0001449,2]
[324910497,1714411832528,-160.68843753,0.00014514,2]
[324910498,1714411832538,-2626.30439442,0.0001455,2]
[324910499,1714411832550,-300.0,0.00014551,2]
[324910500,1714411832559,-18297.66611269,0.00014552,2]
[324910502,1714411832570,-6602.33388731,0.00014552,2]
[324910504,1714411832580,-300.0,0.00014728,2]
[324910506,1714411832590,-166.666666,0.00014908,2]
[324910508,1714411832600,-160.68843753,0.00015331,2]
[324910510,1714411832609,-514.23297925,0.00016,2]
[324910512,1714411832619,-420.0,0.00016007,2]
[324910514,1714411832628,-420.0,0.00016123,2]
[324910516,1714411832637,-160.68843753,0.00016148,2]
[324910517,1714411832647,-160.68843753,0.00016964,2]
[324910519,1714411832656,-587.0,0.00017607,2]
[324910521,1714411832667,-180.0,0.00017651,2]
[324910523,1714411832677,-160.68843753,0.00017781,2]
[324910525,1714411832686,-443.228487,0.00018012,2]
[324910527,1714411832695,-112.96467093,0.00018598,2]
[324910529,1714411832707,-47.7237666,0.00018598,2]
[324910531,1714411832717,-189.00811089,0.00019099,2]
[324910533,1714411832726,-92.43135083,0.00019178,2]
[324910535,1714411832738,-68.42169417,0.00019178,2]
[324910537,1714411832747,-2000.0,0.000192,2]
[324910539,1714411832756,-204.29,0.0001929,3]
[324910541,1714411832766,-612.91,0.0001929,3]
[324910544,1714411832775,-730.61014924,0.00019298,2]
[324910545,1714411832784,-79.98831369,0.00019298,2]
[324911157,1714411838777,-246.76362379,0.00019298,2]
[324911159,1714411838788,-52.27888678,0.00019298,2]
[324911161,1714411838798,-56107.22536403,0.000193,2]
[324911164,1714411838812,-10739.54945145,0.000193,2]
[324911166,1714411838824,-1790.56103531,0.000193,2]
[324911450,1714411841845,-2922.45033516,0.000193,2]
[324911515,1714411843624,-3072.89211924,0.000193,2]
[324911868,1714411933821,206.84821855,9.999e-05,2]
[324911870,1714411967713,151.0,9.999e-05,2]
[324911871,1714412045012,3353.86645053,9.999e-05,2]
[324911956,1714412407390,314.78574907,9.999e-05,2]
[324912013,1714412835135,-339.0449282,0.000134,3]
[324912014,1714412895250,3406.45302342,9.999e-05,2]
[324912015,1714412909557,1891.6935913,9.999e-05,2]
[324912017,1714412923928,314.78574907,9.999e-05,2]
[324912019,1714412930430,208.08192276,9.999e-05,2]
[324912020,1714412933195,1879.62800973,9.999e-05,2]
[324912045,1714413032610,-6652.17199174,0.000134,3]
[324912046,1714413032622,-2279.05142821,0.000134,3]
[324912047,1714413032633,-160.68843753,0.00013696,2]
[324912048,1714413032642,-300.0,0.00013796,2]
[324912049,1714413032652,-300.0,0.00013796,2]
[324912050,1714413032662,-612.03236751,0.00013797,2]
[324912051,1714413032672,-402.20439005,0.00013797,2]
[324912052,1714413032681,-370.91882129,0.00013797,2]
[324912053,1714413032691,-280.68822047,0.00013797,2]
[324912054,1714413032702,-154.78330338,0.00014411,2]
[324912055,1714413032711,-166.666666,0.00014787,2]
[324912056,1714413032720,-420.0,0.00015117,2]
[324912057,1714413032730,-162.60084223,0.0001517,2]
[324912058,1714413032739,-305.42410386,0.0001517,2]
[324912059,1714413032749,-459.08658949,0.0001517,2]
[324912060,1714413032758,-1778.8152981,0.00015171,2]
[324912061,1714413032767,-3721.63953188,0.00015172,2]
[324912062,1714413032779,-415.38634656,0.00015172,2]
[324913516,1714413077105,240.11,9.999e-05,2]
[324913517,1714413077126,40.57822047,9.999e-05,2]
[324913518,1714413085697,158.52800132,9.999e-05,2]
[324913519,1714413085716,116.15045892,9.999e-05,2]
[324913520,1714413089552,36.84954108,9.999e-05,2]
[324913521,1714413089573,1539.45699868,9.999e-05,2]
[324913523,1714413131037,154.78330338,9.999e-05,2]
[324913642,1714413773429,1272.36577163,0.0001,2]
[324913651,1714413853461,1971.73856453,9.999e-05,2]
[324913652,1714413853488,661.95585799,9.999e-05,2]
[324913655,1714413903032,717.86575868,9.999e-05,2]
[324913656,1714413924181,1891.6935913,9.999e-05,2]
[324913657,1714413926558,206.84821855,9.999e-05,2]
[324913659,1714413931178,280.68822047,9.999e-05,2]
[324913660,1714413931664,15512.81374591,9.999e-05,2]
[324913661,1714413933634,218.4725484,9.999e-05,2]
[324913662,1714413935465,2807.21953425,9.999e-05,2]
[324913663,1714413943961,1091.47655963,9.999e-05,2]
[324913664,1714413950348,16100.53592353,9.999e-05,2]
[324913665,1714413950394,19198.47309756,9.999e-05,2]
[324913667,1714413955911,1072.99931694,9.999e-05,2]
[324913668,1714413956098,241.60682646,9.999e-05,2]
[324913669,1714413956825,520.45497619,9.999e-05,2]
[324913671,1714413961455,1313.01433148,0.0001,2]
[324913672,1714413961874,180.60362265,9.999e-05,2]
[324913673,1714413963653,850.84224864,9.999e-05,2]
[324913674,1714413964100,683.23867972,9.999e-05,2]
[324913675,1714413970592,890.802326,9.999e-05,2]
[324913676,1714413972526,154.79876161,9.999e-05,2]
[324913677,1714413973499,768.8594876,0.0001,2]
[324913678,1714413973691,12493.39856205,9.999e-05,2]
[324913679,1714413974123,154.79876161,9.999e-05,2]
[324913680,1714413974589,700.5279589,9.999e-05,2]
[324913681,1714413977414,164.0768642,9.999e-05,2]
[324913682,1714413980323,981.56171248,9.999e-05,2]
[324913683,1714413980545,564.97951661,9.999e-05,2]
[324913684,1714413980713,475.19457976,9.999e-05,2]
[324913685,1714413981579,197.7433074,9.999e-05,2]
[324913686,1714413982472,1203.25513556,9.999e-05,2]
[324913687,1714413982967,7873.55611444,9.999e-05,2]
[324913689,1714413988697,283.80616892,9.999e-05,2]
[324913690,1714413989793,1879.62800973,9.999e-05,2]
[324913691,1714413993069,550.01932666,9.999e-05,2]
[324913692,1714413993117,154.79876161,9.999e-05,2]
[324913693,1714413996230,513.47404116,9.999e-05,2]
[324913694,1714414000273,154.79876161,9.999e-05,2]
[324913695,1714414003681,16102.63338321,9.999e-05,2]
[324913697,1714414013094,155.69179956,9.999e-05,2]
[324913698,1714414013542,154.79876161,9.999e-05,2]
[324913699,1714414021623,14322.95055525,9.999e-05,2]
[324913700,1714414033140,-162.25127864,0.00013999,2]
[324913701,1714414041084,-358.20369755,0.00013999,2]
[324913702,1714414041105,-2626.30439442,0.00013999,2]
[324913703,1714414041126,-928.56039633,0.00014,2]
[324913704,1714414041147,-2807.21953425,0.0001489,2]
[324913705,1714414041169,-206.84821855,0.00014891,2]
[324913706,1714414041197,-475.19457976,0.00014891,2]
[324913707,1714414041226,-265.42106498,0.00014891,7]
[324913708,1714414041252,-140.66234099,0.00014891,2]
[324913713,1714414074011,154.98003273,9.999e-05,2]
[324913718,1714414093794,718.54795119,9.999e-05,2]
[324913727,1714414159690,280.75978917,9.999e-05,2]
[324913729,1714414168078,-2109.37567224,0.00012743,2]
[324913731,1714414172026,354.49207638,9.999e-05,2]
[324913732,1714414175706,257.98919445,9.999e-05,2]
[324913733,1714414188905,265.65951833,0.00012741,7]
[324913734,1714414202903,265.65951833,0.000135,7]
[324913735,1714414204537,214.2955848,0.00012121,2]
[324913736,1714414209568,717.86575868,9.999e-05,2]
[324913737,1714414215369,174.59759652,0.00011742,2]
[324913738,1714414215388,2047.75242045,0.00011742,2]
[324913739,1714414220980,265.65951833,0.000135,7]
[324913783,1714414232352,-382.15946328,0.0001174,2]
[324913785,1714414232365,-1182.614844,0.0001174,2]
[324913859,1714414237910,-305.095,0.0001174,2]
[324913861,1714414237922,-720.14847056,0.0001174,2]
[324913863,1714414237932,-1203.25513556,0.0001174,2]
[324913865,1714414237941,-700.5279589,0.0001174,2]
[324913867,1714414237951,-520.45497619,0.0001174,2]
[324913869,1714414237960,-5807.75773021,0.00011741,2]
[324913871,1714414237969,-6804.36597343,0.00011742,2]
[324913872,1714414237978,-59210.59185385,0.00012738,2]
[324913873,1714414237988,-1091.47655963,0.00012739,2]
[324913874,1714414237997,-15672.89435023,0.00012739,2]
[324913875,1714414238006,-300.0,0.0001274,2]
[324913876,1714414238016,-300.0,0.0001274,2]
[324913877,1714414238025,-7873.55611444,0.0001274,2]
[324913878,1714414238035,-1891.6935913,0.00012741,2]
[324913879,1714414238044,-718.54795119,0.00012742,2]
[324913880,1714414238054,-890.802326,0.00012742,2]
[324913881,1714414238063,-22790.62432776,0.00012743,2]
[324913882,1714414238073,-2015.99425331,0.000135,2]
[324913883,1714414238084,-717.86575868,0.000135,2]
[324913884,1714414238093,-325.81728988,0.000135,2]
[324913885,1714414238103,-592.3769393,0.00013506,2]
[324913886,1714414238113,-166.666666,0.00013699,2]
[324913887,1714414238122,-615.794345,0.00013699,2]
[324913888,1714414238132,-420.0,0.00013976,2]
[324913889,1714414238142,-420.0,0.00014014,2]
[324913890,1714414238152,-843.2101005,0.00014146,2]
[324913891,1714414238162,-154.78330338,0.00014889,2]
[324913892,1714414238172,-154.79876161,0.00014889,2]
[324913893,1714414238182,-154.78330338,0.00014889,2]
[324913894,1714414238190,-241.39645482,0.00014891,2]